fUST/lending_fUST_20240815
["ID","MTS","AMOUNT","RATE_DAILY","PERIOD"]
[334974407,1723702242956,-500.0,0.00013698,2]
[334974408,1723702242965,-500.0,0.00013698,2]
[334974409,1723702242976,-500.0,0.00013698,2]
[334974410,1723702242987,-500.0,0.00013698,2]
[334974411,1723702242998,-500.0,0.00013698,2]
[334974412,1723702243008,-500.0,0.00013698,2]
[334974413,1723702243021,-500.0,0.00013698,2]
[334974414,1723702243035,-500.0,0.00013698,2]
[334974415,1723702243046,-500.0,0.00013698,2]
[334974416,1723702243058,-500.0,0.00013698,2]
[334974417,1723702243068,-500.0,0.00013698,2]
[334974418,1723702243077,-515.08071142,0.00013698,2]
[334974419,1723702243087,-500.0,0.00013698,2]
[334974420,1723702243098,-500.0,0.00013698,2]
[334974421,1723702243107,-500.0,0.00013698,2]
[334974422,1723702243116,-500.0,0.00013698,2]
[334974423,1723702243126,-557.89,0.00013698,2]
[334974424,1723702243136,-500.0,0.00013698,2]
[334974425,1723702243146,-500.0,0.00013698,2]
[334974426,1723702243156,-501.8582106,0.00013698,2]
[334974427,1723702243165,-500.0,0.00013698,2]
[334974428,1723702243174,-500.0,0.00013698,2]
[334974429,1723702243184,-505.12008702,0.00013698,2]
[334974430,1723702243193,-507.85530341,0.00013698,2]
[334974431,1723702243203,-500.0,0.00013698,2]
[334974432,1723702243213,-209.29438178,0.00013698,2]
[334974434,1723702243351,-491.88561822,0.00013698,2]
[334974436,1723702243361,-500.0,0.00013698,2]
[334974439,1723702243374,-500.0,0.00013698,2]
[334974441,1723702243385,-500.0,0.00013698,2]
[334974442,1723702243395,-357.61438176,0.00013698,2]
[334974445,1723702243408,-142.38561824,0.00013698,2]
[334974447,1723702243418,-500.0,0.00013698,2]
[334974449,1723702243428,-500.0,0.00013698,2]
[334974452,1723702243439,-500.0,0.00013698,2]
[334974455,1723702243448,-500.0,0.00013698,2]
[334974458,1723702243459,-500.0,0.00013698,2]
[334974461,1723702243468,-195.26883965,0.00013698,2]
[334974465,1723702243482,-319.50665009,0.00013698,2]
[334974468,1723702243492,-504.35264139,0.00013698,2]
[334974471,1723702243501,-500.0,0.00013698,2]
[334974473,1723702243512,-500.0,0.00013698,2]
[334974475,1723702243521,-127.17770516,0.00013698,2]
[334974499,1723702246020,-261.81,0.00013698,2]
[334974500,1723702350717,153.73,0.00018,31]
[334974501,1723702350780,153.73,0.00018,31]
[334974502,1723702350835,153.73,0.00018,31]
[334974503,1723702351565,153.73,0.00018,31]
[334974506,1723702952634,153.77,0.00018,31]
[334974507,1723702952688,153.77,0.00018,31]
[334974508,1723702952763,153.77,0.00018,31]
[334974509,1723702953137,153.77,0.00018,31]
[334974512,1723703324685,14178.0,0.00025,120]
[334974531,1723703433363,-279.13204617,9.336e-05,2]
[334974532,1723703433374,-200.0,9.34e-05,2]
[334974533,1723703433385,-200.0,9.34e-05,2]
[334974534,1723703433394,-200.0,0.0001071,2]
[334974535,1723703433404,-200.0,0.0001071,2]
[334974536,1723703433414,-52.96386816,0.00012934,2]
[334974581,1723703438279,-102.05504227,0.00012934,2]
[334974583,1723703438289,-202.989541,0.00012986,2]
[334974586,1723703438301,-778.79488443,0.00013478,2]
[334974595,1723703438401,-4545.83400542,0.00013478,2]
[334974597,1723703438410,-2920.58238087,0.00013598,2]
[334974599,1723703438420,-171.05518019,0.00013598,2]
[334974601,1723703438430,-1632.63405099,0.00013598,2]
[334974603,1723703438441,-369.91158516,0.00013599,2]
[334974605,1723703438450,-465.00000001,0.00013631,2]
[334974607,1723703438460,-171.05518018,0.00013667,2]
[334974609,1723703438470,-6645.08385961,0.00013688,2]
[334974650,1723703443357,-1310.85,0.00013688,2]
[334974653,1723703443373,-1114.70677148,0.00013688,2]
[334974657,1723703443386,-49.69322852,0.00013689,2]
[334974953,1723703446239,-533.811996,0.00013689,2]
[334975085,1723703554730,153.84,0.00018,31]
[334975086,1723703554779,153.84,0.00018,31]
[334975087,1723703554825,153.84,0.00018,31]
[334975088,1723703554865,153.84,0.00018,31]
[334975098,1723704273937,-273.37336231,9.606e-05,2]
[334975099,1723704312155,154.80649189,9.606e-05,2]
[334975100,1723704324463,155.37646185,9.606e-05,2]
[334975101,1723704343921,4725.53850828,9.606e-05,2]
[334975102,1723704344838,967.15331106,9.606e-05,2]
[334975103,1723704346998,406.77446256,9.606e-05,2]
[334975107,1723704401731,302.13862623,9.606e-05,2]
[334975218,1723704638930,-2280.6099092,0.0001212,3]
[334975220,1723704638941,-180.99337969,0.00012985,2]
[334975222,1723704638951,-192.840063,0.00012986,2]
[334975224,1723704638961,-5324.62888985,0.00013329,2]
[334975226,1723704638971,-223.26161126,0.00013596,2]
[334975228,1723704638983,-332.92042668,0.00013599,2]
[334975230,1723704638993,-8156.1666623,0.00013688,2]
[334975232,1723704639004,-815.61666623,0.00013689,2]
[334975234,1723704639014,-815.61666623,0.0001369,2]
[334975237,1723704639024,-150.0,0.00013693,2]
[334975239,1723704639035,-521.0,0.00013693,2]
[334975241,1723704639046,-1413.0,0.00013693,2]
[334975243,1723704639057,-761.66569272,0.00013697,2]
[334975245,1723704639066,-2615.99501343,0.00013698,2]
[334975247,1723704639076,-505.76759998,0.00013698,2]
[334975249,1723704639087,-500.0,0.00013698,2]
[334975251,1723704639096,-500.0,0.00013698,2]
[334975253,1723704639106,-500.0,0.00013698,2]
[334975255,1723704639116,-500.0,0.00013698,2]
[334975257,1723704639126,-500.0,0.00013698,2]
[334975259,1723704639136,-500.0,0.00013698,2]
[334975260,1723704639147,-500.0,0.00013698,2]
[334975261,1723704639157,-500.0,0.00013698,2]
[334975262,1723704639167,-500.0,0.00013698,2]
[334975263,1723704639178,-500.0,0.00013698,2]
[334975264,1723704639188,-500.0,0.00013698,2]
[334975265,1723704639198,-500.0,0.00013698,2]
[334975266,1723704639210,-500.0,0.00013698,2]
[334975267,1723704639220,-500.0,0.00013698,2]
[334975268,1723704639230,-500.0,0.00013698,2]
[334975269,1723704639250,-500.0,0.00013698,2]
[334975270,1723704639260,-500.0,0.00013698,2]
[334975271,1723704639270,-500.0,0.00013698,2]
[334975272,1723704639280,-500.0,0.00013698,2]
[334975273,1723704639291,-501.10103205,0.00013698,2]
[334975274,1723704639304,-500.0,0.00013698,2]
[334975275,1723704639314,-500.0,0.00013698,2]
[334975276,1723704639324,-500.0,0.00013698,2]
[334975277,1723704639335,-461.7642912,0.00013698,2]
[334975278,1723704639345,-531.68686259,0.00013698,2]
[334975279,1723704639355,-500.0,0.00013698,2]
[334975280,1723704639366,-506.49706242,0.00013698,2]
[334975281,1723704639377,-783.2,0.00013698,2]
[334975282,1723704639387,-500.0,0.00013698,2]
[334975283,1723704639398,-500.0,0.00013698,2]
[334975284,1723704639408,-504.08618297,0.00013698,2]
[334975285,1723704639418,-500.0,0.00013698,2]
[334975286,1723704639428,-500.0,0.00013698,2]
[334975287,1723704639437,-500.0,0.00013698,2]
[334975288,1723704639447,-500.0,0.00013698,2]
[334975289,1723704639456,-500.0,0.00013698,2]
[334975290,1723704639466,-500.0,0.00013698,2]
[334975291,1723704639475,-804.48,0.00013698,2]
[334975292,1723704639487,-500.0,0.00013698,2]
[334975293,1723704639498,-501.97427302,0.00013698,2]
[334975294,1723704639507,-500.0,0.00013698,2]
[334975295,1723704639517,-500.0,0.00013698,2]
[334975296,1723704639526,-555.57,0.00013698,2]
[334975297,1723704639536,-437.51391793,0.00013698,2]
[334975298,1723704639545,-917.27,0.00013698,2]
[334975299,1723704639555,-500.0,0.00013698,2]
[334975300,1723704639564,-500.0,0.00013698,2]
[334975301,1723704639574,-500.0,0.00013698,2]
[334975302,1723704639584,-635.92883535,0.00013698,2]
[334975303,1723704639593,-500.0,0.00013698,2]
[334975304,1723704639603,-510.58154531,0.00013698,2]
[334975305,1723704639612,-500.0,0.00013698,2]
[334975306,1723704639622,-500.0,0.00013698,2]
[334975307,1723704639632,-830.17,0.00013698,2]
[334975308,1723704639642,-587.08,0.00013698,2]
[334975309,1723704639652,-500.0,0.00013698,2]
[334975310,1723704639662,-500.0,0.00013698,2]
[334975311,1723704639676,-160.72807566,0.00013698,2]
[334975313,1723704639687,-500.0,0.00013698,2]
[334975314,1723704639697,-500.0,0.00013698,2]
[334975315,1723704639707,-919.27,0.00013698,2]
[334975316,1723704639717,-500.0,0.00013698,2]
[334975317,1723704639727,-582.3,0.00013698,2]
[334975318,1723704639744,-500.0,0.00013698,2]
[334975319,1723704639754,-291.39570957,0.00013698,2]
[334975320,1723704639764,-500.0,0.00013698,2]
[334975321,1723704639774,-99.55080884,0.00013698,2]
[334975322,1723704639791,-409.0000254,0.00013698,2]
[334975324,1723704639801,-501.04825597,0.00013698,2]
[334975325,1723704639811,-663.4,0.00013698,2]
[334975326,1723704639821,-106.55171834,0.00013698,2]
[334975332,1723704640372,-341.9985739,0.00013698,2]
[334975333,1723704640382,-393.44828166,0.00013698,2]
[334975334,1723704640391,-500.0,0.00013698,2]
[334975335,1723704640401,-83.06542637,0.00013698,2]
[334975336,1723704640459,-416.93457363,0.00013698,2]
[334975337,1723704640468,-512.21131121,0.00013698,2]
[334975338,1723704640477,-312.60544213,0.00013698,2]
[334975339,1723704640489,-187.39455787,0.00013698,2]
[334975340,1723704640498,-415.76750706,0.00013698,2]
[334975341,1723704640538,-84.23249294,0.00013698,2]
[334975342,1723704640548,-500.0,0.00013698,2]
[334975343,1723704640557,-500.0,0.00013698,2]
[334975344,1723704640566,-709.86,0.00013698,2]
[334975345,1723704640576,-751.89,0.00013698,2]
[334975346,1723704640586,-500.0,0.00013698,2]
[334975347,1723704640595,-255.06935328,0.00013698,2]
[334975364,1723704643809,-380.83284636,0.00013697,2]
[334975365,1723704643819,-200.54715364,0.00013698,2]
[334975366,1723704643832,-44.38349308,0.00013698,2]
[334975367,1723704643842,-500.0,0.00013698,2]
[334975368,1723704643852,-842.21,0.00013698,2]
[334975369,1723704643862,-500.0,0.00013698,2]
[334975370,1723704643873,-500.0,0.00013698,2]
[334975371,1723704643883,-182.44474743,0.00013698,2]
[334975394,1723704649038,-40.02283218,0.00013698,2]
[334975395,1723704649048,-500.0,0.00013698,2]
[334975396,1723704649058,-690.29906977,0.00013698,2]
[334975398,1723704688178,228.5374339,9.9e-05,2]
[334975402,1723705044910,894.99754113,9.999e-05,2]
[334975407,1723705523547,3000.0,0.0002,60]
[334975409,1723705565899,810.98237385,9.999e-05,2]
[334975410,1723705645613,156.50620257,9.999e-05,2]
[334975412,1723705688110,288.75276977,9.999e-05,2]
[334975452,1723705833334,-1004.25000015,0.00011987,2]
[334975626,1723705838872,-2453.75399104,0.00011987,2]
[334975628,1723705838882,-211.32011388,0.00011987,2]
[334975630,1723705838896,-494.91757814,0.00011987,2]
[334975632,1723705838905,-301.37434502,0.00011999,2]
[334975634,1723705838915,-157.03390899,0.00011999,2]
[334975636,1723705838925,-413.45265018,0.00011999,2]
[334975638,1723705838934,-1765.80762466,0.00011999,2]
[334975640,1723705838943,-196.71565749,0.00011999,2]
[334975642,1723705838952,-2711.5271311,0.00011999,2]
[334975644,1723705838963,-2165.20291982,0.00011999,2]
[334975646,1723705838972,-155.14120582,0.0001212,2]
[334975648,1723705838982,-12278.8559625,0.0001231,2]
[334975650,1723705838991,-493.03932546,0.0001295,2]
[334975652,1723705839000,-2127.22081013,0.00012985,2]
[334975654,1723705839010,-183.198059,0.00012986,2]
[334975656,1723705839020,-724.39999998,0.00013,2]
[334975658,1723705839030,-915.70671131,0.00013,2]
[334975660,1723705839042,-1413.0,0.00013325,2]
[334975662,1723705839052,-5324.62888985,0.00013485,2]
[334975664,1723705839062,-239.7890683,0.000135,2]
[334975666,1723705839071,-16745.23855117,0.0001359,2]
[334975668,1723705839081,-151.0,0.0001359,2]
[334975670,1723705839091,-151.0,0.0001359,2]
[334975672,1723705839101,-331.220887,0.0001359,2]
[334975674,1723705839110,-465.0,0.00013596,2]
[334975676,1723705839121,-1664.64400181,0.00013598,2]
[334975678,1723705839132,-546.73512417,0.00013598,2]
[334975680,1723705839144,-259.55309143,0.00013598,2]
[334975682,1723705839153,-151.0,0.00013598,2]
[334975697,1723705839287,-151.0,0.00013598,2]
[334975700,1723705839301,-331.220887,0.00013598,2]
[334975702,1723705839310,-7547.49433788,0.00013598,2]
[334975708,1723705839362,-25895.53569746,0.00013598,2]
[334975833,1723705840736,-331.220887,0.0001359,2]
[334975835,1723705840748,-331.220887,0.00013598,2]
[334975837,1723705840758,-2073.26741273,0.00013598,2]
[334975839,1723705840768,-401.7310145,0.000136,2]
[334975841,1723705840778,-306.0,0.000136,2]
[334975844,1723705840790,-268.0002184,0.000136,2]
[334975847,1723705840808,-259.55309143,0.00013667,2]
[334975849,1723705840824,-5393.12196786,0.00013688,2]
[334975852,1723705840840,-490.28381526,0.00013689,2]
[334975854,1723705840855,-490.28381526,0.00013689,2]
[334975857,1723705840869,-521.0,0.00013694,2]
[334975859,1723705840883,-380.83284636,0.00013697,2]
[334975862,1723705840908,-151.0,0.00013697,2]
[334975865,1723705840924,-169.812386,0.00013697,2]
[334975867,1723705840940,-331.220887,0.00013697,2]
[334975870,1723705840955,-1307.99750671,0.00013698,2]
[334975872,1723705840969,-500.0,0.00013698,2]
[334975875,1723705840982,-736.69,0.00013698,2]
[334975877,1723705840996,-500.0,0.00013698,2]
[334975880,1723705841011,-500.0,0.00013698,2]
[334975882,1723705841024,-500.0,0.00013698,2]
[334975885,1723705841035,-500.0,0.00013698,2]
[334975887,1723705841047,-500.0,0.00013698,2]
[334975889,1723705841060,-500.0,0.00013698,2]
[334975892,1723705841074,-500.0,0.00013698,2]
[334975894,1723705841087,-500.0,0.00013698,2]
[334975897,1723705841100,-509.9,0.00013698,2]
[334975899,1723705841116,-500.0,0.00013698,2]
[334975902,1723705841129,-500.0,0.00013698,2]
[334975904,1723705841151,-500.0,0.00013698,2]
[334975906,1723705841163,-500.0,0.00013698,2]
[334975909,1723705841174,-277.27363706,0.00013698,2]
[334975911,1723705841186,-500.0,0.00013698,2]
[334975914,1723705841201,-500.0,0.00013698,2]
[334975916,1723705841215,-500.0,0.00013698,2]
[334975918,1723705841227,-500.0,0.00013698,2]
[334975921,1723705841240,-500.0,0.00013698,2]
[334975923,1723705841252,-500.0,0.00013698,2]
[334975925,1723705841265,-500.0,0.00013698,2]
[334975928,1723705841276,-500.0,0.00013698,2]
[334975930,1723705841287,-587.41,0.00013698,2]
[334975932,1723705841298,-500.0,0.00013698,2]
[334975934,1723705841313,-500.0,0.00013698,2]
[334975937,1723705841325,-500.0,0.00013698,2]
[334975939,1723705841337,-500.0,0.00013698,2]
[334975941,1723705841349,-534.65,0.00013698,2]
[334975943,1723705841361,-500.0,0.00013698,2]
[334975945,1723705841372,-500.0,0.00013698,2]
[334975948,1723705841384,-500.0,0.00013698,2]
[334975950,1723705841401,-500.0,0.00013698,2]
[334975952,1723705841412,-507.85530341,0.00013698,2]
[334975954,1723705841424,-500.0,0.00013698,2]
[334975957,1723705841438,-500.0,0.00013698,2]
[334975959,1723705841451,-680.68,0.00013698,2]
[334975961,1723705841463,-500.0,0.00013698,2]
[334975963,1723705841474,-500.0,0.00013698,2]
[334975966,1723705841487,-500.0,0.00013698,2]
[334975968,1723705841498,-500.0,0.00013698,2]
[334975970,1723705841511,-363.94625682,0.00013698,2]
[334975972,1723705841522,-500.0,0.00013698,2]
[334975975,1723705841534,-500.0,0.00013698,2]
[334975977,1723705841545,-500.0,0.00013698,2]
[334975979,1723705841557,-500.0,0.00013698,2]
[334975982,1723705841570,-500.0,0.00013698,2]
[334975984,1723705841581,-1312.72,0.00013698,2]
[334975986,1723705841593,-500.0,0.00013698,2]
[334975988,1723705841604,-500.0,0.00013698,2]
[334975990,1723705841615,-500.0,0.00013698,2]
[334975992,1723705841627,-500.0,0.00013698,2]
[334975994,1723705841641,-500.0,0.00013698,2]
[334975996,1723705841655,-727.83,0.00013698,2]
[334975999,1723705841671,-507.12989778,0.00013698,2]
[334976001,1723705841683,-500.0,0.00013698,2]
[334976003,1723705841696,-556.34241771,0.00013698,2]
[334976005,1723705841709,-500.0,0.00013698,2]
[334976007,1723705841720,-691.72,0.00013698,2]
[334976009,1723705841733,-775.46,0.00013698,2]
[334976011,1723705841745,-714.08,0.00013698,2]
[334976013,1723705841757,-515.83017476,0.00013698,2]
[334976015,1723705841769,-500.0,0.00013698,2]
[334976017,1723705841780,-500.0,0.00013698,2]
[334976019,1723705841792,-500.0,0.00013698,2]
[334976020,1723705841803,-500.0,0.00013698,2]
[334976021,1723705841815,-500.0,0.00013698,2]
[334976022,1723705841828,-500.0,0.00013698,2]
[334976023,1723705841840,-500.0,0.00013698,2]
[334976024,1723705841851,-500.0,0.00013698,2]
[334976025,1723705841863,-500.0,0.00013698,2]
[334976026,1723705841875,-500.0,0.00013698,2]
[334976027,1723705841886,-527.24,0.00013698,2]
[334976028,1723705841900,-500.0,0.00013698,2]
[334976029,1723705841912,-500.0,0.00013698,2]
[334976031,1723705841924,-500.0,0.00013698,2]
[334976033,1723705841936,-500.0,0.00013698,2]
[334976035,1723705841947,-500.0,0.00013698,2]
[334976038,1723705841959,-500.0,0.00013698,2]
[334976040,1723705841971,-500.0,0.00013698,2]
[334976042,1723705841982,-500.0,0.00013698,2]
[334976045,1723705841996,-500.0,0.00013698,2]
[334976047,1723705842007,-500.0,0.00013698,2]
[334976049,1723705842019,-500.0,0.00013698,2]
[334976051,1723705842031,-500.0,0.00013698,2]
[334976053,1723705842043,-500.0,0.00013698,2]
[334976056,1723705842054,-699.68,0.00013698,2]
[334976058,1723705842066,-501.39409148,0.00013698,2]
[334976060,1723705842078,-500.0,0.00013698,2]
[334976062,1723705842090,-500.0,0.00013698,2]
[334976064,1723705842102,-750.78,0.00013698,2]
[334976067,1723705842114,-526.98,0.00013698,2]
[334976069,1723705842126,-503.20340676,0.00013698,2]
[334976071,1723705842137,-504.06897648,0.00013698,2]
[334976073,1723705842152,-500.0,0.00013698,2]
[334976074,1723705842164,-500.0,0.00013698,2]
[334976075,1723705842176,-500.0,0.00013698,2]
[334976076,1723705842187,-151.0,0.00013698,2]
[334976077,1723705842198,-151.0,0.00013698,2]
[334976078,1723705842210,-151.0,0.00013698,2]
[334976079,1723705842222,-151.681406,0.00013698,2]
[334976080,1723705842234,-500.0,0.00013698,2]
[334976081,1723705842246,-956.01,0.00013698,2]
[334976082,1723705842258,-195.3863153,0.00013698,2]
[334976083,1723705842269,-500.0,0.00013698,2]
[334976084,1723705842278,-500.94457135,0.00013698,2]
[334976085,1723705842485,-503.76344581,0.00013698,2]
[334976086,1723705842496,-500.0,0.00013698,2]
[334976087,1723705842505,-500.0,0.00013698,2]
[334976088,1723705842515,-500.0,0.00013698,2]
[334976089,1723705842524,-500.0,0.00013698,2]
[334976090,1723705842533,-502.97006443,0.00013698,2]
[334976091,1723705842543,-500.0,0.00013698,2]
[334976092,1723705842552,-706.89,0.00013698,2]
[334976093,1723705842561,-500.0,0.00013698,2]
[334976094,1723705842570,-500.0,0.00013698,2]
[334976095,1723705842579,-620.01,0.00013698,2]
[334976096,1723705842589,-502.82621963,0.00013698,2]
[334976097,1723705842598,-500.0,0.00013698,2]
[334976098,1723705842608,-680.12,0.00013698,2]
[334976099,1723705842618,-496.41965757,0.00013698,2]
[334976100,1723705842629,-500.0,0.00013698,2]
[334976101,1723705842639,-500.0,0.00013698,2]
[334976102,1723705842651,-507.70579056,0.00013698,2]
[334976103,1723705842664,-500.0,0.00013698,2]
[334976104,1723705842674,-699.32,0.00013698,2]
[334976105,1723705842685,-500.0,0.00013698,2]
[334976106,1723705842695,-684.65,0.00013698,2]
[334976107,1723705842706,-500.0,0.00013698,2]
[334976108,1723705842715,-500.0,0.00013698,2]
[334976109,1723705842726,-500.0,0.00013698,2]
[334976110,1723705842739,-649.35320042,0.00013698,2]
[334976111,1723705842750,-500.0,0.00013698,2]
[334976112,1723705842762,-504.50983386,0.00013698,2]
[334976113,1723705842771,-500.0,0.00013698,2]
[334976114,1723705842780,-754.48,0.00013698,2]
[334976116,1723705842790,-500.0,0.00013698,2]
[334976118,1723705842799,-500.0,0.00013698,2]
[334976119,1723705842808,-806.23,0.00013698,2]
[334976121,1723705842818,-500.0,0.00013698,2]
[334976122,1723705842828,-450.0,0.00013698,2]
[334976123,1723705842839,-500.0,0.00013698,2]
[334976124,1723705842850,-500.0,0.00013698,2]
[334976125,1723705842859,-769.97,0.00013698,2]
[334976126,1723705842870,-500.0,0.00013698,2]
[334976127,1723705842879,-502.71337189,0.00013698,2]
[334976128,1723705842888,-500.0,0.00013698,2]
[334976129,1723705842898,-502.02432684,0.00013698,2]
[334976130,1723705842908,-764.08,0.00013698,2]
[334976131,1723705842917,-500.0,0.00013698,2]
[334976132,1723705842926,-500.0,0.00013698,2]
[334976133,1723705842935,-1067.65,0.00013698,2]
[334976134,1723705842945,-522.64,0.00013698,2]
[334976135,1723705842954,-501.42185491,0.00013698,2]
[334976136,1723705842964,-506.27434918,0.00013698,2]
[334976137,1723705842973,-500.0,0.00013698,2]
[334976138,1723705842983,-500.87832019,0.00013698,2]
[334976139,1723705842992,-516.87269888,0.00013698,2]
[334976140,1723705843002,-500.0,0.00013698,2]
[334976141,1723705843023,-761.28,0.00013698,2]
[334976142,1723705843032,-483.53394423,0.00013698,2]
[334976143,1723705843042,-502.49036166,0.00013698,2]
[334976145,1723705843051,-500.0,0.00013698,2]
[334976147,1723705843061,-698.05,0.00013698,2]
[334976148,1723705843070,-500.0,0.00013698,2]
[334976149,1723705843079,-500.0,0.00013698,2]
[334976150,1723705843088,-607.72,0.00013698,2]
[334976152,1723705843097,-668.73,0.00013698,2]
[334976154,1723705843107,-573.95,0.00013698,2]
[334976156,1723705843116,-500.86575091,0.00013698,2]
[334976158,1723705843125,-1224.14,0.00013698,2]
[334976160,1723705843134,-504.20879386,0.00013698,2]
[334976162,1723705843144,-500.0,0.00013698,2]
[334976164,1723705843154,-509.16562092,0.00013698,2]
[334976166,1723705843164,-500.0,0.00013698,2]
[334976168,1723705843173,-504.99208689,0.00013698,2]
[334976170,1723705843184,-191.15948822,0.00013698,2]
[334976172,1723705843194,-500.0,0.00013698,2]
[334976174,1723705843203,-614.41,0.00013698,2]
[334976176,1723705843213,-723.52,0.00013698,2]
[334976177,1723705843223,-500.0,0.00013698,2]
[334976178,1723705843232,-500.0,0.00013698,2]
[334976179,1723705843241,-502.79,0.00013698,2]
[334976180,1723705843251,-502.34607036,0.00013698,2]
[334976181,1723705843260,-500.0,0.00013698,2]
[334976182,1723705843269,-500.0,0.00013698,2]
[334976183,1723705843279,-500.0,0.00013698,2]
[334976184,1723705843288,-500.0,0.00013698,2]
[334976185,1723705843298,-500.0,0.00013698,2]
[334976186,1723705843307,-559.35,0.00013698,2]
[334976187,1723705843318,-558.59,0.00013698,2]
[334976188,1723705843327,-500.0,0.00013698,2]
[334976189,1723705843337,-500.0,0.00013698,2]
[334976190,1723705843347,-500.0,0.00013698,2]
[334976191,1723705843356,-500.0,0.00013698,2]
[334976192,1723705843365,-501.03023954,0.00013698,2]
[334976193,1723705843375,-500.0,0.00013698,2]
[334976194,1723705843384,-792.17,0.00013698,2]
[334976195,1723705843395,-500.0,0.00013698,2]
[334976196,1723705843404,-500.0,0.00013698,2]
[334976197,1723705843413,-500.0,0.00013698,2]
[334976198,1723705843424,-500.0,0.00013698,2]
[334976200,1723705843434,-504.53771264,0.00013698,2]
[334976202,1723705843444,-500.0,0.00013698,2]
[334976204,1723705843454,-500.0,0.00013698,2]
[334976206,1723705843464,-616.24,0.00013698,2]
[334976208,1723705843474,-503.88829484,0.00013698,2]
[334976210,1723705843484,-109.80990743,0.00013698,2]
[334976219,1723705844179,-331.220887,0.00013697,2]
[334976220,1723705844189,-591.65009257,0.00013698,2]
[334976221,1723705844198,-500.0,0.00013698,2]
[334976222,1723705844208,-500.0,0.00013698,2]
[334976223,1723705844218,-520.97854365,0.00013698,2]
[334976248,1723706913834,444.74,0.00016,10]
[334976249,1723706916105,2500.0,0.00023,60]
[334976250,1723706950870,3500.0,0.00023,60]
[334976255,1723707010565,3300.0,0.00023,60]
[334976257,1723707027928,4200.0,0.00023,60]
[334976305,1723707033648,-221.66,0.00010959,2]
[334976306,1723707033659,-184.72,0.00010959,2]
[334976307,1723707033669,-153.93,0.00010959,2]
[334976308,1723707033679,-769.69,0.00010959,2]
[334976309,1723707033689,-786.55001793,0.0001212,2]
[334976310,1723707033698,-174.038156,0.00012986,2]
[334976311,1723707033708,-3492.4573464,0.00013531,2]
[334976342,1723707038980,-1832.17154345,0.00013531,2]
[334976343,1723707038990,-271.89068209,0.00013588,2]
[334976344,1723707039002,-3086.0614253,0.00013588,2]
[334976345,1723707039011,-422.14513971,0.00013596,2]
[334976346,1723707039020,-644.09225176,0.00013598,2]
[334976347,1723707039029,-6343.42131681,0.00013598,2]
[334976348,1723707039043,-651.30631796,0.00013598,2]
[334976365,1723707040994,-3340.18643562,0.00013598,2]
[334976366,1723707041004,-150.0,0.00013663,2]
[334976367,1723707041013,-18312.75751862,0.0001368,2]
[334976368,1723707041022,-1413.0,0.00013695,2]
[334976369,1723707041033,-150.0,0.00013695,2]
[334976370,1723707041045,-10003.86774458,0.00013698,2]
[334976371,1723707041054,-500.0,0.00013698,2]
[334976372,1723707041065,-500.0,0.00013698,2]
[334976373,1723707041075,-500.0,0.00013698,2]
[334976374,1723707041086,-500.0,0.00013698,2]
[334976375,1723707041095,-500.0,0.00013698,2]
[334976376,1723707041107,-500.0,0.00013698,2]
[334976377,1723707041117,-684.33,0.00013698,2]